fUSD/lending_fUSD_20250414
["ID","MTS","AMOUNT","RATE_DAILY","PERIOD"]
[357961185,1744620648460,-500.0,0.00019726,2]
[357961186,1744620648469,-500.0,0.00019726,2]
[357961187,1744620648478,-500.0,0.00019726,2]
[357961188,1744620648487,-500.0,0.00019726,2]
[357961189,1744620648498,-500.0,0.00019726,2]
[357961190,1744620648507,-500.0,0.00019726,2]
[357961191,1744620648516,-500.0,0.00019726,2]
[357961192,1744620648525,-524.85605284,0.00019726,2]
[357961193,1744620648534,-500.0,0.00019726,2]
[357961194,1744620648543,-237.02,0.00019726,2]
[357961195,1744620648553,-500.0,0.00019726,2]
[357961196,1744620648562,-500.0,0.00019726,2]
[357961197,1744620648571,-637.57,0.00019726,2]
[357961198,1744620648581,-500.0,0.00019726,2]
[357961199,1744620648590,-500.0,0.00019726,2]
[357961200,1744620648601,-500.0,0.00019726,2]
[357961201,1744620648613,-500.0,0.00019726,2]
[357961202,1744620648623,-500.0,0.00019726,2]
[357961203,1744620648632,-500.0,0.00019726,2]
[357961204,1744620648642,-591.12,0.00019726,2]
[357961205,1744620648651,-1075.58,0.00019726,2]
[357961206,1744620648660,-500.0,0.00019726,2]
[357961207,1744620648669,-500.0,0.00019726,2]
[357961208,1744620648679,-500.0,0.00019726,2]
[357961209,1744620648688,-303.75,0.00019726,2]
[357961210,1744620648698,-500.0,0.00019726,2]
[357961211,1744620648707,-216.8061749,0.00019726,2]
[357961212,1744620648716,-500.0,0.00019726,2]
[357961213,1744620648725,-500.0,0.00019726,2]
[357961214,1744620648735,-500.0,0.00019726,2]
[357961215,1744620648745,-524.63404989,0.00019726,2]
[357961216,1744620648754,-596.22917166,0.00019726,2]
[357961217,1744620648763,-581.26,0.00019726,2]
[357961218,1744620648773,-500.0,0.00019726,2]
[357961219,1744620648782,-500.0,0.00019726,2]
[357961220,1744620648791,-500.0,0.00019726,2]
[357961221,1744620648810,-500.0,0.00019726,2]
[357961222,1744620648821,-500.0,0.00019726,2]
[357961223,1744620648831,-500.0,0.00019726,2]
[357961224,1744620648841,-500.0,0.00019726,2]
[357961225,1744620648851,-500.0,0.00019726,2]
[357961226,1744620648861,-500.0,0.00019726,2]
[357961227,1744620648871,-500.0,0.00019726,2]
[357961228,1744620648882,-500.0,0.00019726,2]
[357961229,1744620648892,-233.65,0.00019726,2]
[357961230,1744620648903,-500.0,0.00019726,2]
[357961231,1744620648914,-500.0,0.00019726,2]
[357961232,1744620648924,-500.0,0.00019726,2]
[357961233,1744620648933,-531.89,0.00019726,2]
[357961234,1744620648943,-500.0,0.00019726,2]
[357961235,1744620648953,-218.14006173,0.00019726,2]
[357961236,1744620648963,-500.0,0.00019726,2]
[357961237,1744620648974,-500.0,0.00019726,2]
[357961238,1744620648985,-635.19,0.00019726,2]
[357961239,1744620648997,-409.61,0.00019726,2]
[357961240,1744620649008,-603.97,0.00019726,2]
[357961241,1744620649020,-500.0,0.00019726,2]
[357961242,1744620649030,-500.0,0.00019726,2]
[357961243,1744620649041,-500.0,0.00019726,2]
[357961244,1744620649051,-500.0,0.00019726,2]
[357961245,1744620649060,-500.0,0.00019726,2]
[357961246,1744620649070,-514.77124932,0.00019726,2]
[357961247,1744620649080,-556.95,0.00019726,2]
[357961248,1744620649090,-500.0,0.00019726,2]
[357961249,1744620649100,-500.0,0.00019726,2]
[357961250,1744620649110,-500.0,0.00019726,2]
[357961251,1744620649120,-500.0,0.00019726,2]
[357961252,1744620649131,-500.0,0.00019726,2]
[357961253,1744620649141,-500.0,0.00019726,2]
[357961254,1744620649152,-806.33,0.00019726,2]
[357961255,1744620649162,-500.0,0.00019726,2]
[357961256,1744620649172,-500.0,0.00019726,2]
[357961257,1744620649183,-500.0,0.00019726,2]
[357961258,1744620649194,-500.0,0.00019726,2]
[357961259,1744620649205,-500.0,0.00019726,2]
[357961260,1744620649214,-500.0,0.00019726,2]
[357961261,1744620649224,-500.0,0.00019726,2]
[357961262,1744620649234,-536.01507649,0.00019726,2]
[357961263,1744620649244,-500.0,0.00019726,2]
[357961264,1744620649254,-500.0,0.00019726,2]
[357961265,1744620649265,-500.0,0.00019726,2]
[357961266,1744620649274,-482.17,0.00019726,2]
[357961267,1744620649285,-1708.96,0.00019726,2]
[357961268,1744620649296,-500.0,0.00019726,2]
[357961269,1744620649306,-500.0,0.00019726,2]
[357961270,1744620649322,-613.74,0.00019726,2]
[357961271,1744620649333,-500.0,0.00019726,2]
[357961272,1744620649343,-18004.62,0.00019726,2]
[357961273,1744620649517,-500.0,0.00019726,2]
[357961274,1744620649543,-500.0,0.00019726,2]
[357961275,1744620649553,-526.33,0.00019726,2]
[357961276,1744620649563,-500.0,0.00019726,2]
[357961277,1744620649573,-500.0,0.00019726,2]
[357961278,1744620649582,-500.0,0.00019726,2]
[357961279,1744620649592,-500.0,0.00019726,2]
[357961280,1744620649602,-595.36,0.00019726,2]
[357961281,1744620649612,-500.0,0.00019726,2]
[357961282,1744620649621,-500.0,0.00019726,2]
[357961283,1744620649631,-4458.17,0.00019726,2]
[357961284,1744620649641,-500.0,0.00019726,2]
[357961285,1744620649651,-500.0,0.00019726,2]
[357961286,1744620649660,-500.0,0.00019726,2]
[357961287,1744620649670,-203.08,0.00019726,2]
[357961288,1744620649680,-500.0,0.00019726,2]
[357961289,1744620649689,-912.84,0.00019726,2]
[357961290,1744620649699,-500.0,0.00019726,2]
[357961291,1744620649709,-500.0,0.00019726,2]
[357961292,1744620649718,-500.0,0.00019726,2]
[357961293,1744620649727,-281.07,0.00019726,2]
[357961294,1744620649738,-500.0,0.00019726,2]
[357961295,1744620649747,-500.0,0.00019726,2]
[357961296,1744620649757,-500.0,0.00019726,2]
[357961297,1744620649767,-500.0,0.00019726,2]
[357961298,1744620649776,-500.0,0.00019726,2]
[357961299,1744620649786,-500.0,0.00019726,2]
[357961300,1744620649795,-598.75,0.00019726,2]
[357961301,1744620649805,-500.0,0.00019726,2]
[357961302,1744620649814,-500.0,0.00019726,2]
[357961303,1744620649824,-500.0,0.00019726,2]
[357961304,1744620649833,-1368.58,0.00019726,2]
[357961305,1744620649843,-2958.7241334,0.0001973,2]
[357961306,1744620649852,-2958.7241334,0.00019753,2]
[357961307,1744620649861,-1479.36206674,0.00019765,2]
[357961308,1744620649871,-370.48724769,0.00019773,2]
[357961309,1744620649882,-500.0,0.00019799,2]
[357961310,1744620649891,-500.0,0.00019799,2]
[357961311,1744620649901,-2223.92,0.00019799,2]
[357961312,1744620649911,-985.2916833,0.00019799,2]
[357961313,1744620649921,-1000.0,0.000198,2]
[357961314,1744620649930,-1173.17211231,0.00019809,2]
[357961315,1744620649939,-12500.0,0.00019838,2]
[357961316,1744620649949,-12500.0,0.00019847,2]
[357961317,1744620649959,-12500.0,0.00019856,2]
[357961318,1744620649969,-500.0,0.00019863,2]
[357961319,1744620649978,-500.0,0.00019863,2]
[357961320,1744620649987,-620.73122095,0.00019863,2]
[357961321,1744620649996,-500.0,0.00019863,2]
[357961322,1744620650005,-500.0,0.00019863,2]
[357961323,1744620650015,-500.0,0.00019863,2]
[357961324,1744620650025,-500.0,0.00019863,2]
[357961325,1744620650034,-500.0,0.00019863,2]
[357961326,1744620650044,-500.0,0.00019863,2]
[357961327,1744620650053,-500.0,0.00019863,2]
[357961328,1744620650063,-500.0,0.00019863,2]
[357961329,1744620650072,-500.0,0.00019863,2]
[357961330,1744620650082,-500.0,0.00019863,2]
[357961331,1744620650091,-500.0,0.00019863,2]
[357961332,1744620650100,-600.0,0.00019863,2]
[357961333,1744620650109,-12500.0,0.00019865,2]
[357961334,1744620650119,-12500.0,0.00019874,2]
[357961335,1744620650129,-500.0,0.00019882,2]
[357961336,1744620650138,-12500.0,0.00019882,2]
[357961337,1744620650148,-12500.0,0.00019882,2]
[357961338,1744620650158,-12500.0,0.00019891,2]
[357961339,1744620650168,-12500.0,0.00019891,2]
[357961340,1744620650178,-168.19,0.00019898,2]
[357961341,1744620650187,-500.0,0.00019899,2]
[357961342,1744620650197,-191.71584393,0.00019899,2]
[357961343,1744620650206,-2526.181,0.00019899,2]
[357961344,1744620650215,-474.5,0.00019899,2]
[357961345,1744620650224,-2223.92,0.00019899,2]
[357961346,1744620650234,-11174.25201968,0.000199,2]
[357961347,1744620650243,-235.6225,0.000199,2]
[357961348,1744620650252,-375.23358628,0.000199,2]
[357961349,1744620650262,-12500.0,0.000199,2]
[357961350,1744620650272,-12500.0,0.000199,2]
[357961351,1744620650281,-1173.17211231,0.000199,2]
[357961352,1744620650291,-203.61373272,0.000199,2]
[357961353,1744620650301,-1064.4635012,0.00019931,2]
[357961354,1744620650311,-154.63566114,0.00019973,2]
[357961355,1744620650325,-504.77074405,0.00019973,2]
[357961356,1744620650335,-360.26739713,0.00019973,2]
[357961357,1744620650344,-505.70066406,0.00019973,2]
[357961358,1744620650354,-502.90277105,0.00019973,2]
[357961359,1744620650364,-500.50744045,0.00019973,2]
[357961360,1744620650373,-302.04231921,0.00019973,2]
[357961361,1744620650383,-500.0,0.00019973,2]
[357961362,1744620650393,-159.88511112,0.00019973,2]
[357961363,1744620650404,-500.0,0.00019973,2]
[357961364,1744620650414,-500.0,0.00019973,2]
[357961365,1744620650423,-500.0,0.00019973,2]
[357961366,1744620650432,-501.49922872,0.00019973,2]
[357961367,1744620650441,-500.0,0.00019973,2]
[357961368,1744620650451,-8793.9158901,0.00019986,2]
[357961369,1744620650461,-1492.1450453,0.00019986,2]
[357961370,1744620650470,-96113.5900068,0.00019986,2]
[357961371,1744620650479,-1640.2224903,0.00019986,2]
[357961372,1744620650488,-155.00875569,0.00019988,2]
[357961373,1744620650497,-668.65185757,0.00019988,2]
[357961374,1744620650506,-207.4,0.00019988,2]
[357961375,1744620650516,-822.79022036,0.0001999,2]
[357961376,1744620650525,-822.79022036,0.0001999,2]
[357961377,1744620650535,-822.79022036,0.0001999,2]
[357961378,1744620650544,-1124.18,0.00019998,2]
[357961379,1744620650554,-500.0,0.00019998,2]
[357961380,1744620650563,-500.0,0.00019998,2]
[357961381,1744620650572,-300.0,0.00019999,2]
[357961382,1744620650582,-1092.49106309,0.00019999,2]
[357961383,1744620650591,-500.0,0.00019999,2]
[357961384,1744620650600,-500.0,0.00019999,2]
[357961385,1744620650610,-500.0,0.00019999,2]
[357961386,1744620650620,-500.0,0.00019999,2]
[357961387,1744620650629,-500.0,0.00019999,2]
[357961388,1744620650639,-500.0,0.00019999,2]
[357961389,1744620650647,-500.0,0.00019999,2]
[357961390,1744620650657,-500.0,0.00019999,2]
[357961391,1744620650666,-592.1059884,0.00019999,2]
[357961392,1744620650675,-1000.0,0.00019999,2]
[357961393,1744620650685,-1000.0,0.00019999,2]
[357961394,1744620650695,-1000.0,0.00019999,2]
[357961395,1744620650704,-1000.0,0.00019999,2]
[357961396,1744620650714,-1000.0,0.00019999,2]
[357961397,1744620650723,-1000.0,0.00019999,2]
[357961398,1744620650733,-448.397339,0.00019999,2]
[357961399,1744620650742,-903.19,0.00019999,2]
[357961400,1744620650751,-2223.92,0.00019999,2]
[357961401,1744620650760,-2223.92,0.00019999,2]
[357961402,1744620650770,-2223.92,0.00019999,2]
[357961403,1744620650779,-2223.92,0.00019999,2]
[357961404,1744620650790,-2223.92,0.00019999,2]
[357961405,1744620650799,-2223.92,0.00019999,2]
[357961406,1744620650809,-2223.92,0.00019999,2]
[357961407,1744620650819,-2223.92,0.00019999,2]
[357961408,1744620650829,-2223.92,0.00019999,2]
[357961409,1744620650838,-2223.92,0.00019999,2]
[357961410,1744620650847,-2223.92,0.00019999,2]
[357961411,1744620650857,-2223.92,0.00019999,2]
[357961412,1744620650866,-2223.92,0.00019999,2]
[357961413,1744620650876,-2223.92,0.00019999,2]
[357961414,1744620650886,-2223.92,0.00019999,2]
[357961415,1744620650896,-2223.92,0.00019999,2]
[357961416,1744620650906,-2223.92,0.00019999,2]
[357961417,1744620650917,-2223.92,0.00019999,2]
[357961418,1744620650926,-2223.92,0.00019999,2]
[357961419,1744620650937,-2224.04475695,0.00019999,2]
[357961420,1744620650946,-1124.18,0.00019999,2]
[357961421,1744620650956,-1124.18,0.00019999,2]
[357961422,1744620650966,-1124.18,0.00019999,2]
[357961423,1744620650975,-1124.18,0.00019999,2]
[357961424,1744620650984,-1124.18,0.00019999,2]
[357961425,1744620650995,-1124.18,0.00019999,2]
[357961426,1744620651006,-1124.18,0.00019999,2]
[357961427,1744620651016,-1124.18,0.00019999,2]
[357961428,1744620651026,-1124.18,0.00019999,2]
[357961429,1744620651037,-1124.18,0.00019999,2]
[357961430,1744620651046,-1124.18,0.00019999,2]
[357961431,1744620651057,-1124.18,0.00019999,2]
[357961432,1744620651067,-1124.18,0.00019999,2]
[357961433,1744620651077,-1124.18,0.00019999,2]
[357961434,1744620651088,-1124.18,0.00019999,2]
[357961435,1744620651099,-1124.18,0.00019999,2]
[357961436,1744620651110,-1124.18,0.00019999,2]
[357961437,1744620651120,-1124.18,0.00019999,2]
[357961438,1744620651131,-1124.18,0.00019999,2]
[357961439,1744620651141,-1124.18,0.00019999,2]
[357961440,1744620651150,-1124.18,0.00019999,2]
[357961441,1744620651161,-1124.32414242,0.00019999,2]
[357961442,1744620651171,-422.93771787,0.00019999,2]
[357961443,1744620651182,-150.0,0.00019999,2]
[357961444,1744620651193,-150.0,0.00019999,2]
[357961445,1744620651203,-150.0,0.00019999,2]
[357961446,1744620651213,-150.0,0.00019999,2]
[357961447,1744620651223,-150.0,0.00019999,2]
[357961448,1744620651234,-150.0,0.00019999,2]
[357961449,1744620651245,-150.0,0.00019999,2]
[357961450,1744620651255,-150.0,0.00019999,2]
[357961451,1744620651265,-150.0,0.00019999,2]
[357961452,1744620651275,-150.0,0.00019999,2]
[357961453,1744620651285,-150.0,0.00019999,2]
[357961454,1744620651295,-150.0,0.00019999,2]
[357961455,1744620651305,-150.0,0.00019999,2]
[357961456,1744620651316,-155.40338861,0.00019999,2]
[357961457,1744620651330,-951.0,0.0002,2]
[357961458,1744620651340,-189884.41278179,0.0002,2]
[357961459,1744620651350,-710536.0229338,0.0002,2]
[357961460,1744620651373,-332.42622256,0.0002,2]
[357961461,1744620651386,-685.35343168,0.0002,2]
[357961462,1744620651400,-1469.52906931,0.0002,2]
[357961463,1744620651506,-2.290515,0.0002,2]
[357961464,1744620651639,-500.0,0.00019178,2]
[357961465,1744620651649,-500.0,0.00019178,2]
[357961466,1744620651660,-535.9947423,0.00019178,2]
[357961467,1744620651671,-500.0,0.00019452,2]
[357961468,1744620651681,-415.9440167,0.0002,2]
[357961469,1744620651714,-320.54797247,0.0002,2]
[357961470,1744620652986,-0.00410222,0.0002,2]
[357961471,1744620652998,-6066.37413359,0.0002,2]
[357961472,1744620654013,-234.96684583,0.00019178,2]
[357961473,1744620654023,-295.00346948,0.0002,2]
[357961474,1744620655046,-0.00059873,0.0002,2]
[357961475,1744620655058,-2487.99069298,0.0002,2]
[357961476,1744620655069,-898.41937132,0.0002,2]
[357961477,1744620655080,-7112.7420137,0.0002,2]
[357961478,1744620812857,12781.89306463,0.000197,5]
[357961479,1744620944788,-242.1,0.00018405,2]
[357961480,1744620944813,-120.96647608,0.00018756,2]
[357961481,1744621274706,9313.21,0.00025,30]
[357961482,1744621289408,480.49140287,0.00016557,2]
[357961483,1744621289436,104.10859713,0.00016557,2]
[357961484,1744621290594,-282.18,0.000185,2]
[357961485,1744621290621,-20.110515,0.00018741,2]
[357961486,1744621348714,-165.87,0.00018647,2]
[357961487,1744621427230,-224.94578397,0.00018647,2]
[357961488,1744621484685,-151.0848997,0.000186,2]
[357961489,1744621503549,-151.24559102,0.00018507,2]
[357961490,1744621596149,-0.07621098,0.00018507,2]
[357961491,1744621596172,-172.56473502,0.000186,2]
[357961492,1744621654080,-157.91,0.00018239,2]
[357961493,1744621681779,-171.04043135,0.00018239,2]
[357961494,1744621711390,-202.0,0.00018,2]
[357961497,1744621831847,-132.0,0.00018,2]
[357961498,1744621831857,-250.0,0.00018164,2]
[357961499,1744621831867,-1334.80885001,0.00018239,2]
[357961500,1744621831953,-1280.86813107,0.00018239,2]
[357961501,1744621831962,-787.72537109,0.00018239,2]
[357961502,1744621831973,-367.35042861,0.00018239,2]
[357961503,1744621831984,-408.65678787,0.00018239,2]
[357961504,1744621831993,-250.0,0.00018419,2]
[357961505,1744621832003,-76.35036528,0.000186,2]
[357961506,1744621832013,-300.0,0.00018735,2]
[357961507,1744621832022,-928.39,0.00018736,2]
[357961508,1744621832032,-1132.07,0.00018736,2]
[357961509,1744621832041,-250.0,0.00018736,2]
[357961510,1744621832051,-179.889485,0.00018741,2]
[357961511,1744621832060,-879.03352392,0.00018756,2]
[357961512,1744621832069,-300.0,0.00018818,2]
[357961513,1744621832078,-584.6,0.0001882,2]
[357961514,1744621832088,-250.0,0.00018825,2]
[357961515,1744621832098,-251.16453933,0.00018853,2]
[357961516,1744621832108,-251.16453933,0.00018877,2]
[357961517,1744621832118,-251.16453933,0.000189,2]
[357961518,1744621832129,-168.2,0.00018953,2]
[357961519,1744621832138,-1348.76556763,0.00018978,2]
[357961520,1744621832148,-259.8773,0.00018978,2]
[357961521,1744621832158,-3410.13786954,0.0001898,2]
[357961522,1744621832167,-74601.0,0.0001899,2]
[357961523,1744621832176,-6615.26144491,0.0001899,2]
[357961524,1744621832188,-318.67968607,0.0001899,2]
[357961525,1744621832215,-13066.04886902,0.0001899,2]
[357961526,1744621832224,-10607.29523197,0.0001899,2]
[357961527,1744621832256,-3863.3,0.0001899,2]
[357961528,1744621832267,-415.32026094,0.0001899,2]
[357961529,1744621832285,-7584.80622634,0.0001899,2]
[357961530,1744621832298,-945.20828075,0.0001899,2]
[357961531,1744621832308,-250.0,0.00019,2]
[357961532,1744621832318,-171.53640773,0.00019,2]
[357961533,1744621832328,-5635.02929858,0.00019078,2]
[357961534,1744621832340,-518.32839176,0.00019078,2]
[357961561,1744621837929,-590.37530102,0.00019078,2]
[357961562,1744621837984,-2547.105,0.00019078,2]
[357961563,1744621837995,-2813.57906416,0.00019078,2]
[357961564,1744621838007,-18338.08004448,0.00019078,2]
[357961565,1744621838016,-1000.0,0.00019078,2]
[357961566,1744621838026,-1000.0,0.00019078,2]
[357961567,1744621838036,-1348.76556754,0.0001908,2]
[357961568,1744621838046,-500.0,0.00019096,2]
[357961569,1744621838055,-155.00875569,0.00019166,2]
[357961570,1744621838065,-668.65185757,0.00019166,2]
[357961571,1744621838074,-207.4,0.00019166,2]
[357961572,1744621838082,-1525.26,0.00019168,2]
[357961573,1744621838090,-376.08761113,0.00019173,2]
[357961574,1744621838098,-495.92990279,0.00019178,2]
[357961575,1744621838107,-500.0,0.00019178,2]
[357961576,1744621838116,-500.0,0.00019178,2]
[357961577,1744621838125,-626.48,0.00019178,2]
[357961578,1744621838134,-500.0,0.00019178,2]
[357961579,1744621838143,-433.68158638,0.00019178,2]
[357961580,1744621838151,-500.0,0.00019178,2]
[357961581,1744621838161,-500.0,0.00019178,2]
[357961582,1744621838170,-500.0,0.00019178,2]
[357961583,1744621838180,-583.02074856,0.00019178,2]
[357961584,1744621838191,-500.0,0.00019178,2]
[357961585,1744621838201,-500.0,0.00019178,2]
[357961586,1744621838211,-500.0,0.00019178,2]
[357961587,1744621838220,-500.0,0.00019178,2]
[357961588,1744621838230,-500.0,0.00019178,2]
[357961589,1744621838239,-500.0,0.00019178,2]
[357961590,1744621838249,-500.0,0.00019178,2]
[357961591,1744621838258,-500.0,0.00019178,2]
[357961592,1744621838268,-500.0,0.00019178,2]
[357961593,1744621838278,-500.0,0.00019178,2]
[357961594,1744621838287,-500.0,0.00019178,2]
[357961595,1744621838296,-500.0,0.00019178,2]
[357961596,1744621838306,-516.51621669,0.00019178,2]
[357961597,1744621838316,-533.13185769,0.00019178,2]
[357961598,1744621838325,-500.0,0.00019178,2]
[357961599,1744621838335,-500.0,0.00019178,2]
[357961600,1744621838344,-500.0,0.00019178,2]
[357961601,1744621838353,-500.0,0.00019178,2]
[357961602,1744621838363,-500.0,0.00019178,2]
[357961604,1744621838373,-500.0,0.00019178,2]
[357961606,1744621838382,-500.0,0.00019178,2]
[357961608,1744621838391,-500.0,0.00019178,2]
[357961610,1744621838401,-500.0,0.00019178,2]
[357961612,1744621838410,-500.0,0.00019178,2]
[357961614,1744621838420,-500.0,0.00019178,2]
[357961616,1744621838429,-500.0,0.00019178,2]
[357961618,1744621838439,-509.08127751,0.00019178,2]
[357961620,1744621838448,-548.77802676,0.00019178,2]
[357961623,1744621838461,-500.0,0.00019178,2]
[357961625,1744621838471,-500.0,0.00019178,2]
[357961627,1744621838480,-500.0,0.00019178,2]
[357961629,1744621838490,-500.0,0.00019178,2]
[357961631,1744621838499,-500.0,0.00019178,2]
[357961632,1744621838508,-500.0,0.00019178,2]
[357961634,1744621838517,-500.0,0.00019178,2]
[357961636,1744621838527,-500.0,0.00019178,2]
[357961638,1744621838536,-500.0,0.00019178,2]
[357961640,1744621838546,-500.0,0.00019178,2]
[357961642,1744621838556,-500.0,0.00019178,2]
[357961644,1744621838565,-537.85678864,0.00019178,2]
[357961646,1744621838575,-500.0,0.00019178,2]
[357961648,1744621838585,-500.0,0.00019178,2]
[357961650,1744621838594,-500.0,0.00019178,2]
[357961652,1744621838603,-500.0,0.00019178,2]
[357961654,1744621838613,-500.0,0.00019178,2]
[357961656,1744621838622,-500.0,0.00019178,2]
[357961658,1744621838631,-500.0,0.00019178,2]
[357961660,1744621838641,-500.0,0.00019178,2]
[357961662,1744621838650,-500.0,0.00019178,2]
[357961664,1744621838659,-500.0,0.00019178,2]
[357961666,1744621838668,-500.0,0.00019178,2]
[357961668,1744621838677,-300.0,0.00019178,2]
[357961670,1744621838686,-500.0,0.00019178,2]
[357961672,1744621838696,-500.0,0.00019178,2]
[357961674,1744621838709,-500.0,0.00019178,2]
[357961676,1744621838718,-500.0,0.00019178,2]
[357961678,1744621838727,-500.0,0.00019178,2]
[357961680,1744621838742,-500.0,0.00019178,2]
[357961682,1744621838752,-500.0,0.00019178,2]
[357961684,1744621838761,-500.0,0.00019178,2]
[357961686,1744621838771,-500.0,0.00019178,2]
[357961687,1744621838782,-500.0,0.00019178,2]
[357961690,1744621838791,-500.0,0.00019178,2]
[357961692,1744621838801,-500.0,0.00019178,2]
[357961694,1744621838811,-448.44037279,0.00019178,2]
[357961695,1744621838820,-500.0,0.00019178,2]
[357961696,1744621838830,-503.93402038,0.00019178,2]
[357961697,1744621838839,-500.0,0.00019178,2]
[357961698,1744621838848,-500.0,0.00019178,2]
[357961699,1744621838858,-500.0,0.00019178,2]
[357961700,1744621838868,-500.0,0.00019178,2]
[357961701,1744621838877,-517.73322421,0.00019178,2]
[357961702,1744621838887,-500.0,0.00019178,2]
[357961703,1744621838896,-543.09818202,0.00019178,2]
[357961704,1744621838905,-500.0,0.00019178,2]
[357961705,1744621838915,-435.70114522,0.00019178,2]
[357961706,1744621838925,-515.30020117,0.00019178,2]
[357961707,1744621838934,-500.0,0.00019178,2]
[357961708,1744621838943,-500.0,0.00019178,2]
[357961709,1744621838954,-500.0,0.00019178,2]
[357961711,1744621838964,-500.0,0.00019178,2]
[357961713,1744621838973,-500.0,0.00019178,2]
[357961715,1744621838982,-500.0,0.00019178,2]
[357961717,1744621838991,-500.0,0.00019178,2]
[357961719,1744621839001,-500.0,0.00019178,2]
[357961721,1744621839010,-500.0,0.00019178,2]
[357961723,1744621839019,-500.0,0.00019178,2]
[357961725,1744621839029,-500.0,0.00019178,2]
[357961727,1744621839038,-413.25298056,0.00019178,2]
[357961728,1744621839047,-515.01682115,0.00019178,2]
[357961730,1744621839057,-184.14701516,0.00019178,2]
[357961732,1744621839066,-500.0,0.00019178,2]
[357961734,1744621839076,-500.0,0.00019178,2]
[357961736,1744621839085,-500.0,0.00019178,2]
[357961738,1744621839095,-611.74852338,0.00019178,2]
[357961740,1744621839104,-500.0,0.00019178,2]
[357961742,1744621839113,-500.0,0.00019178,2]
[357961744,1744621839123,-524.27657853,0.00019178,2]
[357961746,1744621839132,-500.0,0.00019178,2]
[357961748,1744621839142,-500.0,0.00019178,2]
[357961750,1744621839152,-500.0,0.00019178,2]
[357961752,1744621839161,-519.18541583,0.00019178,2]
[357961754,1744621839170,-500.0,0.00019178,2]
[357961756,1744621839180,-564.37980529,0.00019178,2]
[357961758,1744621839190,-500.0,0.00019178,2]
[357961760,1744621839199,-500.0,0.00019178,2]
[357961762,1744621839208,-1084.94,0.00019178,2]
[357961764,1744621839217,-500.0,0.00019178,2]
[357961766,1744621839228,-500.0,0.00019178,2]
[357961769,1744621839238,-504.78528371,0.00019178,2]
[357961771,1744621839247,-500.0,0.00019178,2]
[357961773,1744621839256,-500.0,0.00019178,2]
[357961794,1744621839456,-331.7342972,0.00019178,2]
[357961796,1744621839466,-185.4308115,0.00019178,2]
[357961798,1744621839475,-500.0,0.00019178,2]
[357961800,1744621839485,-539.88475398,0.00019178,2]
[357961802,1744621839494,-509.66859677,0.00019178,2]
[357961804,1744621839504,-500.0,0.00019178,2]
[357961806,1744621839514,-500.0,0.00019178,2]
[357961808,1744621839522,-500.0,0.00019178,2]
[357961810,1744621839531,-500.0,0.00019178,2]
[357961812,1744621839541,-500.0,0.00019178,2]
[357961814,1744621839550,-2006.29983534,0.00019178,2]
[357961816,1744621839559,-547.81999945,0.00019178,2]
[357961818,1744621839568,-151.24940708,0.00019178,2]
[357961820,1744621839576,-500.0,0.00019178,2]
[357961822,1744621839586,-5000.0,0.00019178,2]
[357961824,1744621839595,-500.0,0.00019178,2]
[357961826,1744621839605,-500.0,0.00019178,2]